fUST/lending_fUST_20241210
["ID","MTS","AMOUNT","RATE_DAILY","PERIOD"]
[344827867,1733813433114,-153.0,0.00024224,2]
[344827868,1733813433123,-153.0,0.00024224,2]
[344827869,1733813433132,-153.0,0.00024224,2]
[344827870,1733813433142,-153.0,0.00024224,2]
[344827871,1733813433152,-153.0,0.00024224,2]
[344827872,1733813433161,-153.0,0.00024224,2]
[344827873,1733813433172,-433.7150144,0.00024274,2]
[344827874,1733813433181,-351.2291458,0.00024274,2]
[344827875,1733813433191,-351.2291458,0.00024274,2]
[344827876,1733813433201,-152.0,0.00024359,2]
[344827877,1733813433211,-166.29,0.00024629,7]
[344827878,1733813433220,-184.42553,0.00024773,2]
[344827879,1733813433230,-1127.90212034,0.0002489,2]
[344827880,1733813433239,-47187.39769697,0.00024989,2]
[344827881,1733813433250,-160.67933313,0.00024989,2]
[344827882,1733813433261,-168.57965503,0.00024989,2]
[344827883,1733813433271,-328.10638225,0.00024989,2]
[344827884,1733813433284,-171.89361775,0.00024989,2]
[344827885,1733813433294,-176.17041431,0.00024989,2]
[344827886,1733813433303,-251.32504425,0.00024989,2]
[344827887,1733813433313,-500.0,0.00024989,2]
[344827888,1733813433322,-417.81927464,0.00024989,2]
[344827889,1733813433331,-72.52151905,0.00024989,2]
[344827890,1733813433343,-104.36432435,0.00024989,2]
[344827891,1733813433352,-500.0,0.00024989,2]
[344827892,1733813433361,-500.0,0.00024989,2]
[344827893,1733813433370,-500.0,0.00024989,2]
[344827894,1733813433380,-250.11230653,0.00024989,2]
[344827895,1733813433389,-500.0,0.00024989,2]
[344827896,1733813433398,-500.0,0.00024989,2]
[344827897,1733813433407,-500.0,0.00024989,2]
[344827898,1733813433416,-500.0,0.00024989,2]
[344827899,1733813433427,-500.0,0.00024989,2]
[344827900,1733813433436,-500.0,0.00024989,2]
[344827901,1733813433446,-500.0,0.00024989,2]
[344827902,1733813433455,-411.61392481,0.00024989,2]
[344827945,1733813438711,-249.722604,0.00023562,2]
[344827947,1733813438721,-88.38607519,0.00024989,2]
[344827949,1733813438730,-472.48132081,0.00024989,2]
[344828649,1733813961436,169.893061,0.00013973,2]
[344828650,1733814121148,215.0,0.000185,2]
[344828695,1733814632810,-400.0,0.00023312,2]
[344828696,1733814632820,-259.6910261,0.00023523,2]
[344828698,1733814632830,-300.0,0.00023682,2]
[344828700,1733814632839,-300.0,0.00023682,2]
[344828702,1733814632849,-22619.6145775,0.00023683,2]
[344828704,1733814632859,-633.815,0.0002374,2]
[344828707,1733814632868,-153.0,0.00023833,2]
[344828710,1733814632878,-153.0,0.00023833,2]
[344828713,1733814632887,-153.0,0.00023833,2]
[344828716,1733814632896,-153.0,0.00023837,2]
[344828718,1733814632906,-153.0,0.00023837,2]
[344828721,1733814632915,-153.0,0.00023837,2]
[344828724,1733814632925,-153.0,0.00023837,2]
[344828727,1733814632934,-153.0,0.00023842,2]
[344828730,1733814632945,-153.0,0.00023842,2]
[344828733,1733814632954,-153.0,0.00023842,2]
[344828736,1733814632963,-153.0,0.00023846,2]
[344828738,1733814632973,-153.0,0.00023846,2]
[344828740,1733814632983,-153.0,0.00023846,2]
[344828741,1733814632992,-153.0,0.00023846,2]
[344828742,1733814633001,-400.0,0.00024174,2]
[344828743,1733814633011,-305.8602924,0.00024274,2]
[344828744,1733814633020,-351.2291458,0.000243,2]
[344828745,1733814633029,-213.5058504,0.000243,2]
[344828746,1733814633039,-305.8602924,0.000243,2]
[344828747,1733814633049,-213.5058504,0.000243,2]
[344828748,1733814633058,-213.5058504,0.000243,2]
[344828749,1733814633068,-1374.8638349,0.00024888,2]
[344828750,1733814633077,-902.32169628,0.0002489,2]
[344828751,1733814633086,-500.0,0.00024988,2]
[344828752,1733814633096,-194.27731777,0.00024988,2]
[344828753,1733814633105,-500.0,0.00024988,2]
[344828754,1733814633114,-250.0124785,0.00024988,2]
[344828755,1733814633123,-500.0,0.00024988,2]
[344828756,1733814633132,-500.0,0.00024988,2]
[344828757,1733814633142,-500.0,0.00024988,2]
[344828758,1733814633151,-500.0,0.00024988,2]
[344828759,1733814633160,-500.0,0.00024988,2]
[344828760,1733814633170,-500.0,0.00024988,2]
[344828761,1733814633183,-500.0,0.00024988,2]
[344828762,1733814633195,-500.0,0.00024988,2]
[344828763,1733814633205,-500.0,0.00024988,2]
[344828764,1733814633216,-500.0,0.00024988,2]
[344828765,1733814633226,-500.0,0.00024988,2]
[344828767,1733814633236,-500.0,0.00024988,2]
[344828769,1733814633245,-163.42701213,0.00024988,2]
[344828771,1733814633257,-406.48019085,0.00024988,2]
[344831682,1733814827763,1379.58966075,0.00030032,42]
[344831684,1733814851615,169.893061,0.00013973,2]
[344831685,1733815388584,2083.9,0.00030031,30]
[344831686,1733815389080,1996.38,0.00030031,30]
[344831687,1733815389366,1913.6889,0.00030031,30]
[344831688,1733815389663,1834.058,0.00030031,30]
[344831689,1733815390007,1757.091,0.00030031,30]
[344831690,1733815390394,1684.313,0.00030031,30]
[344831691,1733815390858,1614.8934,0.00030031,30]
[344831692,1733815391088,1546.829,0.00030031,30]
[344831693,1733815391381,1482.96,0.00030031,30]
[344831694,1733815391673,1420.84,0.00030031,30]
[344831695,1733815392226,1361.98,0.00030031,30]
[344831696,1733815392522,1304.994023,0.00030031,30]
[344831697,1733815392816,1250.259,0.00030031,30]
[344831698,1733815393111,1198.9,0.00030031,30]
[344831699,1733815393414,1148.0,0.00030031,30]
[344831700,1733815393702,1100.81286,0.00030031,30]
[344831701,1733815393984,1054.449,0.00030031,30]
[344831702,1733815394268,1011.0,0.00030031,30]
[344831703,1733815394572,968.724153,0.00030031,30]
[344831704,1733815394866,928.918603,0.00030031,30]
[344831705,1733815395146,889.828,0.00030031,30]
[344831706,1733815505490,852.2306,0.00030031,30]
[344831707,1733815505936,816.253,0.00030031,30]
[344831708,1733815506268,782.0,0.00030031,30]
[344831709,1733815506542,751.0,0.00030031,30]
[344831710,1733815506836,720.0,0.00030031,30]
[344831711,1733815507161,690.0,0.00030031,30]
[344831712,1733815507497,660.8,0.00030031,30]
[344831713,1733815507808,632.36418,0.00030031,30]
[344831714,1733815508081,606.64783,0.00030031,30]
[344831715,1733815508377,581.99939,0.00030031,30]
[344831716,1733815508687,556.7645,0.00030031,30]
[344831717,1733815509029,533.34928,0.00030031,30]
[344831718,1733815525342,511.022,0.00030031,30]
[344831719,1733815525648,490.2,0.00030031,30]
[344831720,1733815526008,469.0,0.00030031,30]
[344831721,1733815526316,450.9828,0.00030031,30]
[344831722,1733815526617,431.0436,0.00030031,30]
[344831723,1733815526918,826.9872,0.00030031,30]
[344831724,1733815527204,757.0,0.00030031,30]
[344831725,1733815527497,694.28,0.00030031,30]
[344831726,1733815527862,637.56,0.00030031,30]
[344831727,1733815528182,584.0,0.00030031,30]
[344831728,1733815528479,535.22,0.00030031,30]
[344831729,1733815528769,490.76,0.00030031,30]
[344831730,1733815529068,449.2272,0.00030031,30]
[344831731,1733815529548,1236.5,0.00030031,30]
[344831732,1733815533879,927.207744,0.00030031,30]
[344831733,1733815534192,695.7365,0.00030031,30]
[344831734,1733815538770,652.941,0.00030031,30]
[344831735,1733815539064,358.92,0.00030031,30]
[344831736,1733815539365,269.647,0.00030031,30]
[344831737,1733815539731,805.5,0.00030031,30]
[344831795,1733815832021,-300.0,0.00019989,2]
[344831796,1733815832030,-300.0,0.00019989,2]
[344831797,1733815832039,-10096.26832124,0.0001999,2]
[344831799,1733815832051,-614.7147,0.0001999,2]
[344832316,1733815838026,-11426.53546028,0.0001999,2]
[344832331,1733815838159,-807.79999891,0.0001999,2]
[344832792,1733815845505,169.893061,0.00013973,2]
[344832811,1733817011199,169.893061,0.00013973,2]
[344832840,1733817032046,-355.597437,0.000199,2]
[344832841,1733817032110,-847.40841852,0.000199,2]
[344832842,1733817032122,-267.50793213,0.00019989,2]
[344832888,1733817038059,-32.49206787,0.00019989,2]
[344832890,1733817038069,-300.0,0.00019989,2]
[344832893,1733817038079,-3998.21133247,0.0001999,2]
[344833495,1733817046252,-449.9626615,0.0001999,2]
[344833497,1733817476047,2746.4467981,0.00030031,30]
[344833501,1733817875483,169.893061,0.00013973,2]
[344833503,1733818008484,53161.0,0.00030031,30]
[344833504,1733818040512,390.3720727,0.0002115,11]
[344833535,1733818232229,-1052.63012358,0.000199,2]
[344833536,1733818232239,-300.0,0.00019989,2]
[344833539,1733818232249,-300.0,0.00019989,2]
[344833540,1733818232334,-41046.954015,0.0001999,2]
[344833541,1733818232370,-2599.22414862,0.0002,2]
[344833542,1733818232381,-694.0,0.0002,3]
[344833543,1733818232390,-691.0,0.0002,3]
[344833544,1733818232400,-691.0,0.0002,3]
[344833545,1733818232410,-691.0,0.0002,3]
[344833546,1733818232419,-2878.6808203,0.00020713,2]
[344833547,1733818232428,-248.566546,0.00021246,2]
[344833548,1733818232438,-1052.63012356,0.00021333,2]
[344833549,1733818232450,-420.0,0.00021766,2]
[344833550,1733818232460,-158.98466441,0.000219,2]
[344833551,1733818232470,-420.0,0.00021988,2]
[344833552,1733818232480,-167.0,0.00022,2]
[344833553,1733818232490,-184.42553,0.0002244,2]
[344833554,1733818232499,-151.0,0.00022534,7]
[344833555,1733818232508,-151.0,0.00022534,7]
[344833556,1733818232518,-434.446067,0.00022534,7]
[344833557,1733818232528,-151.0,0.00022534,7]
[344833558,1733818232537,-434.446067,0.00022534,7]
[344833559,1733818232546,-249.363346,0.00022534,7]
[344833560,1733818232556,-289.398314,0.00022534,7]
[344833561,1733818232565,-289.398314,0.00022534,7]
[344833562,1733818232574,-775.33128,0.00022534,7]
[344833563,1733818232583,-151.0,0.00022534,7]
[344833564,1733818232592,-775.33128,0.00022534,7]
[344833565,1733818232602,-151.0,0.00022534,7]
[344833566,1733818232611,-151.0,0.00022534,7]
[344833567,1733818232620,-396.450028,0.00022534,7]
[344833568,1733818232630,-156.332338,0.00022534,7]
[344833569,1733818232639,-396.450028,0.00022534,7]
[344833570,1733818232649,-156.332338,0.00022534,7]
[344833571,1733818232658,-973.28986,0.00022534,7]
[344833572,1733818232667,-973.28986,0.00022534,7]
[344833573,1733818232676,-973.28986,0.00022534,7]
[344833574,1733818232685,-973.28986,0.00022534,7]
[344833575,1733818232695,-448.8157722,0.00022534,2]
[344833576,1733818232709,-305.8602924,0.00022534,2]
[344833577,1733818232721,-305.8602924,0.00022534,2]
[344833578,1733818232730,-316.9387619,0.00022534,2]
[344833579,1733818232739,-386.8192923,0.00022534,2]
[344833580,1733818232748,-419.6778513,0.00022534,2]
[344833581,1733818232757,-213.5058504,0.00022534,2]
[344833582,1733818232766,-28664.54065712,0.00022766,2]
[344833583,1733818232775,-151.0,0.00022766,7]
[344833584,1733818232785,-151.0,0.00022766,7]
[344833585,1733818232794,-151.0,0.00022766,7]
[344833586,1733818232803,-151.0,0.00022766,7]
[344833587,1733818232812,-305.004951,0.00022766,7]
[344833588,1733818232821,-305.004951,0.00022766,7]
[344833589,1733818232831,-255.368382,0.00022766,7]
[344833590,1733818232840,-255.368382,0.00022766,7]
[344833591,1733818232849,-153.094565,0.00022766,7]
[344833592,1733818232859,-153.094565,0.00022766,7]
[344833593,1733818232868,-218.362079,0.00022766,7]
[344833594,1733818232877,-218.362079,0.00022766,7]
[344833595,1733818232887,-289.398314,0.00022766,7]
[344833596,1733818232897,-289.398314,0.00022766,7]
[344833597,1733818232907,-151.0,0.00022766,7]
[344833598,1733818232916,-151.0,0.00022766,7]
[344833599,1733818232926,-1052.63012356,0.00022766,2]
[344833600,1733818232936,-151.0,0.00022766,7]
[344833601,1733818232948,-396.450028,0.00022766,7]
[344833602,1733818232962,-156.332338,0.00022766,7]
[344833603,1733818232971,-396.450028,0.00022766,7]
[344833604,1733818232981,-156.332338,0.00022766,7]
[344833605,1733818232991,-973.28986,0.00022766,7]
[344833606,1733818233001,-973.28986,0.00022766,7]
[344833607,1733818233012,-230.10326577,0.00022887,2]
[344833608,1733818233021,-184.42553,0.00023,2]
[344833609,1733818233031,-400.0,0.00023288,2]
[344833610,1733818233042,-151.0,0.00023288,7]
[344833611,1733818233052,-151.0,0.00023288,7]
[344833612,1733818233062,-434.446067,0.00023288,7]
[344833613,1733818233072,-151.0,0.00023288,7]
[344833614,1733818233082,-434.446067,0.00023288,7]
[344833615,1733818233092,-775.33128,0.00023288,7]
[344833616,1733818233104,-775.33128,0.00023288,7]
[344833617,1733818233113,-973.28986,0.00023288,7]
[344833618,1733818233123,-973.28986,0.00023288,7]
[344833619,1733818233133,-500.0,0.00023355,2]
[344833620,1733818233143,-320.96306178,0.00023355,2]
[344833621,1733818233154,-500.0,0.00023355,2]
[344833622,1733818233164,-500.0,0.00023355,2]
[344833623,1733818233175,-500.0,0.00023355,2]
[344833624,1733818233185,-500.0,0.00023355,2]
[344833625,1733818233195,-500.0,0.00023355,2]
[344833626,1733818233212,-500.0,0.00023355,2]
[344833627,1733818233222,-500.0,0.00023355,2]
[344833628,1733818233231,-500.0,0.00023355,2]
[344833629,1733818233241,-500.0,0.00023355,2]
[344833630,1733818233251,-500.0,0.00023355,2]
[344833631,1733818233261,-500.0,0.00023355,2]
[344833632,1733818233271,-500.0,0.00023355,2]
[344833633,1733818233281,-500.0,0.00023355,2]
[344833634,1733818233291,-500.0,0.00023355,2]
[344833635,1733818233301,-500.0,0.00023355,2]
[344833636,1733818233316,-500.0,0.00023355,2]
[344833637,1733818233326,-500.0,0.00023355,2]
[344833638,1733818233336,-500.0,0.00023355,2]
[344833639,1733818233345,-500.0,0.00023355,2]
[344833640,1733818233357,-500.0,0.00023355,2]
[344833641,1733818233367,-500.0,0.00023355,2]
[344833642,1733818233377,-500.0,0.00023355,2]
[344833643,1733818233388,-500.0,0.00023355,2]
[344833644,1733818233399,-500.0,0.00023355,2]
[344833645,1733818233408,-500.0,0.00023355,2]
[344833646,1733818233417,-500.0,0.00023355,2]
[344833647,1733818233427,-500.0,0.00023355,2]
[344833648,1733818233437,-500.0,0.00023355,2]
[344833649,1733818233448,-500.0,0.00023355,2]
[344833650,1733818233463,-500.0,0.00023355,2]
[344833651,1733818233475,-500.0,0.00023355,2]
[344833652,1733818233484,-500.0,0.00023355,2]
[344833653,1733818233494,-500.0,0.00023355,2]
[344833654,1733818233504,-500.0,0.00023355,2]
[344833655,1733818233513,-500.0,0.00023355,2]
[344833656,1733818233523,-500.0,0.00023355,2]
[344833657,1733818233533,-500.0,0.00023355,2]
[344833658,1733818233542,-500.0,0.00023355,2]
[344833659,1733818233552,-500.0,0.00023355,2]
[344833660,1733818233561,-500.0,0.00023355,2]
[344833661,1733818233571,-500.0,0.00023355,2]
[344833662,1733818233580,-500.0,0.00023355,2]
[344833663,1733818233590,-500.0,0.00023355,2]
[344833664,1733818233599,-500.0,0.00023355,2]
[344833665,1733818233609,-500.0,0.00023355,2]
[344833666,1733818233620,-500.0,0.00023355,2]
[344833667,1733818233629,-500.0,0.00023355,2]
[344833668,1733818233639,-177.78555101,0.00023355,2]
[344833952,1733818240806,-397.18052487,0.00023355,2]
[344833954,1733818240815,-500.0,0.00023355,2]
[344833956,1733818240824,-500.0,0.00023355,2]
[344833958,1733818240833,-500.0,0.00023355,2]
[344833960,1733818240842,-500.0,0.00023355,2]
[344833962,1733818240851,-500.0,0.00023355,2]
[344833964,1733818240861,-500.0,0.00023355,2]
[344833966,1733818240870,-500.0,0.00023355,2]
[344833968,1733818240879,-500.0,0.00023355,2]
[344833970,1733818240888,-500.0,0.00023355,2]
[344833972,1733818240897,-300.0,0.00023355,2]
[344833974,1733818240907,-500.0,0.00023355,2]
[344833976,1733818240916,-500.0,0.00023355,2]
[344833978,1733818240925,-500.0,0.00023355,2]
[344833980,1733818240934,-500.0,0.00023355,2]
[344833982,1733818240943,-500.0,0.00023355,2]
[344833984,1733818240952,-973.28986,0.00023355,7]
[344833986,1733818240972,-973.28986,0.00023355,7]
[344833988,1733818240981,-973.28986,0.00023355,7]
[344833990,1733818240990,-973.28986,0.00023355,7]
[344833992,1733818240999,-973.28986,0.00023355,7]
[344833994,1733818241008,-973.28986,0.00023355,7]
[344833996,1733818241017,-973.28986,0.00023355,7]
[344833998,1733818241027,-973.28986,0.00023355,7]
[344834000,1733818241036,-973.28986,0.00023355,7]
[344834002,1733818241045,-973.28986,0.00023355,7]
[344834004,1733818241054,-973.28986,0.00023355,7]
[344834006,1733818241063,-880.95341856,0.00023355,7]
[344834087,1733818243430,-92.33645144,0.00023355,7]
[344834088,1733818243439,-151.0,0.00023356,7]
[344834089,1733818243449,-151.0,0.00023356,7]
[344834090,1733818243460,-151.0,0.00023356,7]
[344834091,1733818243469,-151.0,0.00023356,7]
[344834092,1733818243479,-151.0,0.00023356,7]
[344834093,1733818243489,-151.0,0.00023356,7]
[344834094,1733818243498,-151.0,0.00023356,7]
[344834095,1733818243508,-151.0,0.00023356,7]
[344834096,1733818243518,-151.0,0.00023356,7]
[344834098,1733818243527,-151.0,0.00023356,7]
[344834099,1733818243536,-180.741267,0.00023356,7]
[344834100,1733818243545,-83.22069626,0.00023356,7]
[344834157,1733818787337,169.893061,0.00013973,2]
[344834159,1733819082059,22340.19097658,0.000125,2]
[344834210,1733819432456,-1132.4532312,0.00019789,2]
[344834211,1733819432466,-300.0,0.00019989,2]
[344834212,1733819432475,-300.0,0.00019989,2]
[344834213,1733819432489,-5329.07139287,0.0001999,2]
[344834214,1733819432515,-815.07288941,0.0001999,2]
[344834269,1733819438526,-2990.084995,0.0001999,2]
[344834271,1733819438538,-1576.75374396,0.0001999,2]
[344834273,1733819438548,-420.0,0.00021766,2]
[344834275,1733819438557,-215.5925026,0.00021863,2]
[344834277,1733819438567,-856.8979989,0.00021972,2]
[344834279,1733819438576,-88.18118494,0.00021978,2]
[344834463,1733819861469,631.98502887,0.0002188,10]
[344834494,1733820632602,-172.282041,0.00020391,2]
[344834496,1733820632613,-7010.28812956,0.00021096,2]
[344834498,1733820632625,-2159.38828384,0.00021096,2]
[344834500,1733820632634,-300.0,0.00021502,2]
[344834502,1733820632643,-300.0,0.00021593,2]
[344834504,1733820632652,-331.60125238,0.00021594,2]
[344834506,1733820632661,-2969.04204307,0.00021604,2]
[344834510,1733820632675,-1082.05059751,0.00021604,2]
[344834513,1733820632686,-12586.00471487,0.00021604,2]
[344834707,1733820638555,-8262.90264455,0.00021604,2]
[344834718,1733820638667,-154.87609912,0.00021604,2]
[344834720,1733820638681,-9169.6764134,0.00021625,2]
[344834722,1733820638690,-2205.54484305,0.00021683,2]
[344834724,1733820638702,-6964.13157045,0.00021683,2]
[344834726,1733820638712,-247.018885,0.00021692,2]
[344834727,1733820638721,-151.0,0.00021692,2]
[344834729,1733820638730,-151.0,0.00021692,2]
[344834731,1733820638740,-151.0,0.00021692,2]
[344834733,1733820638749,-440.404305,0.00021692,2]
[344834735,1733820638759,-440.404305,0.00021692,2]
[344834736,1733820638768,-151.0,0.00021692,2]
[344834738,1733820638777,-432.30272771,0.00021692,2]
[344834740,1733820638786,-520.235045,0.00021696,2]
[344834742,1733820638795,-274.504456,0.00021733,2]
[344834744,1733820638805,-274.504456,0.00021733,2]
[344834745,1733820638814,-151.0,0.00021733,2]
[344834747,1733820638823,-151.0,0.00021733,2]
[344834749,1733820638832,-151.0,0.00021733,2]
[344834751,1733820638841,-151.0,0.00021733,2]
[344834753,1733820638850,-151.0,0.00021733,2]
[344834755,1733820638860,-151.0,0.00021733,2]
[344834756,1733820638870,-151.0,0.00021733,2]
[344834758,1733820638879,-524.068989,0.00021733,2]
[344834760,1733820638890,-524.068989,0.00021733,2]
[344834762,1733820638899,-151.0,0.00021759,2]
[344834764,1733820638909,-157.757241,0.00021759,2]
[344834765,1733820638918,-999.225954,0.00021759,2]
[344834767,1733820638928,-412.526067,0.00021863,2]
[344834769,1733820638937,-184.42553,0.00021994,2]
[344834771,1733820638946,-6326.86562755,0.00022,2]
[344834773,1733820638955,-151.0,0.00022,7]
[344834775,1733820638965,-228.073848,0.00022,7]
[344834776,1733820638974,-274.504456,0.00022,7]
[344834778,1733820638983,-274.504456,0.00022,7]
[344834780,1733820638992,-151.0,0.00022,7]
[344834782,1733820639002,-151.0,0.00022,7]
[344834783,1733820639012,-151.0,0.00022,7]
[344834785,1733820639021,-151.0,0.00022,7]
[344834787,1733820639033,-151.0,0.00022,7]
[344834789,1733820639042,-151.0,0.00022,7]
[344834791,1733820639052,-151.0,0.00022,7]
[344834793,1733820639061,-524.068989,0.00022,7]
[344834795,1733820639071,-524.068989,0.00022,7]
[344834797,1733820639081,-632.783,0.0002219,2]
[344834799,1733820639090,-151.0,0.0002233,7]
[344834801,1733820639100,-999.225954,0.0002233,7]
[344834803,1733820639109,-151.0,0.0002233,7]
[344834804,1733820639118,-205.613687,0.0002233,7]
[344834806,1733820639127,-440.404305,0.0002233,7]
[344834808,1733820639137,-440.404305,0.0002233,7]
[344834810,1733820639147,-1283.0233044,0.00022331,2]
[344834812,1733820639156,-318.7921254,0.00022441,2]
[344834814,1733820639168,-151.0,0.00022629,7]
[344834815,1733820639178,-151.0,0.00022629,7]
[344834817,1733820639188,-626.671396,0.00022629,7]
[344834819,1733820639198,-626.671396,0.00022629,7]
[344834821,1733820639207,-151.0,0.00022629,7]
[344834822,1733820639216,-151.0,0.00022629,7]
[344834824,1733820639226,-151.0,0.00022629,7]
[344834826,1733820639235,-524.068989,0.00022629,7]
[344834828,1733820639247,-524.068989,0.00022629,7]
[344834830,1733820639257,-274.504456,0.0002263,7]
[344834831,1733820639266,-274.504456,0.0002263,7]
[344834833,1733820639275,-151.0,0.0002263,7]
[344834835,1733820639285,-151.0,0.0002263,7]
[344834837,1733820639294,-151.0,0.0002263,7]
[344834839,1733820639303,-151.0,0.0002263,7]
[344834840,1733820639312,-213.5058504,0.0002263,2]
[344834842,1733820639323,-306.0,0.0002263,2]
[344834844,1733820639333,-425.5449309,0.0002263,2]
[344834845,1733820639343,-153.0,0.0002263,2]
[344834847,1733820639352,-213.5058504,0.0002263,2]
[344834849,1733820639361,-213.5058504,0.0002263,2]
[344834851,1733820639371,-153.0,0.0002263,2]
[344834853,1733820639380,-234.36785809,0.00022684,2]
[344834855,1733820639389,-151.0,0.00022708,7]
[344834857,1733820639399,-158.75516329,0.0002283,2]
[344834859,1733820639408,-620.265024,0.00022833,7]
[344834860,1733820639418,-620.265024,0.00022833,7]
[344834862,1733820639429,-686.359025,0.00022833,7]
[344834864,1733820639438,-0.41239571,0.00022833,7]
[344835890,1733821832011,-176.401179,0.00020857,2]
[344835891,1733821832021,-357.589472,0.00021146,2]
[344835893,1733821832030,-53.76832333,0.0002137,2]
[344835918,1733821837790,-2574.32641397,0.0002137,2]
[344835920,1733821837800,-258.09750262,0.0002137,2]
[344835922,1733821837810,-651.1557781,0.0002147,2]
[344835924,1733821837819,-300.0,0.00021548,2]
[344835926,1733821837828,-300.0,0.00021548,2]
[344835928,1733821837837,-5767.42030531,0.00021549,2]
[344836118,1733821839897,-2202.58694658,0.00021549,2]
[344836446,1733821843020,-2172.3,0.00021549,2]
[344836527,1733821845827,-1931.27969461,0.00021549,2]
[344836528,1733821845836,-151.0,0.00021733,2]
[344836529,1733821845846,-151.0,0.00021733,2]
[344836530,1733821845856,-152.68,0.0002184,2]
[344836531,1733821845867,-155.2399521,0.00021878,2]
[344836532,1733821845876,-424.078161,0.00021978,2]
[344836533,1733821845885,-151.0,0.00022,7]
[344836534,1733821845894,-249.829976,0.00022,7]
[344836535,1733821845904,-606.642,0.0002219,2]
[344836536,1733821845913,-153.0,0.00022278,2]
[344836537,1733821845922,-184.42553,0.00022508,2]
[344836538,1733821845932,-151.0,0.00022629,7]
[344836539,1733821845942,-1111.47803763,0.0002273,2]
[344836540,1733821845951,-13927.79644162,0.000228,2]
[344836541,1733821845966,-4872.249,0.000228,2]
[344836542,1733821845978,-3259.60801005,0.000228,2]
[344836548,1733822570589,-599.15,0.0002169,2]
[344836549,1733822570615,-158.98466441,0.00022528,2]
[344836550,1733822570641,-1547.47451709,0.0002253,2]
[344836551,1733822570669,-300.0,0.00022628,2]
[344836552,1733822570696,-300.0,0.00022628,2]
[344836553,1733822570725,-31572.35122514,0.00022629,2]
[344836554,1733822570752,-295.08746068,0.00022629,2]
[344836555,1733822570778,-162.0,0.00022629,2]
[344836556,1733822570805,-500.0,0.00022629,2]
[344836557,1733822570835,-500.0,0.00022629,2]
[344836558,1733822570864,-500.0,0.00022629,2]
[344836559,1733822570893,-500.0,0.00022629,2]
[344836560,1733822570920,-500.0,0.00022629,2]
[344836561,1733822570948,-500.0,0.00022629,2]
[344836562,1733822570977,-500.0,0.00022629,2]
[344836563,1733822571004,-500.0,0.00022629,2]
[344836564,1733822571033,-500.0,0.00022629,2]
[344836565,1733822571060,-500.0,0.00022629,2]
[344836566,1733822571087,-500.0,0.00022629,2]
[344836567,1733822571114,-500.0,0.00022629,2]
[344836568,1733822571141,-589.35427829,0.00022629,2]
[344836569,1733822571170,-500.0,0.00022629,2]
[344836570,1733822571198,-500.0,0.00022629,2]
[344836571,1733822571227,-500.0,0.00022629,2]
[344836572,1733822571255,-500.0,0.00022629,2]
[344836573,1733822571281,-500.0,0.00022629,2]
[344836574,1733822571308,-500.0,0.00022629,2]
[344836575,1733822571334,-500.0,0.00022629,2]
[344836576,1733822571361,-500.0,0.00022629,2]
[344836577,1733822571388,-500.0,0.00022629,2]
[344836578,1733822571415,-500.0,0.00022629,2]
[344836579,1733822571444,-500.0,0.00022629,2]
[344836580,1733822571471,-500.0,0.00022629,2]